fUST/lending_fUST_20251230
["ID","MTS","AMOUNT","RATE_DAILY","PERIOD"]
[400083181,1767076240101,-1000.0,0.000192,2]
[400083183,1767076240110,-1367.76,0.000192,2]
[400083185,1767076240119,-166.35,0.000192,2]
[400083187,1767076240128,-167.63,0.000192,2]
[400083189,1767076240138,-161.19,0.000192,2]
[400083191,1767076240149,-9961.44,0.000192,2]
[400083192,1767076240158,-303.09092121,0.00019278,2]
[400083194,1767076240167,-532.21782035,0.00019278,2]
[400083195,1767076240176,-151.0,0.000194,2]
[400083197,1767076240186,-303.09092121,0.00019467,2]
[400083199,1767076240195,-660.0,0.00019554,2]
[400083201,1767076240204,-303.09092121,0.00019656,2]
[400083203,1767076240214,-250.64950539,0.00019663,2]
[400083205,1767076240223,-212.76357239,0.00019726,2]
[400083207,1767076240231,-4085.95594613,0.00019771,2]
[400083209,1767076240240,-454.63638182,0.00019845,4]
[400083211,1767076240249,-1402.299,0.0002,2]
[400083213,1767076240259,-454.63638182,0.00020034,4]
[400083214,1767076240268,-760.0,0.00020102,2]
[400083216,1767076240277,-721.386967,0.00020187,2]
[400083218,1767076240286,-151.0,0.000202,3]
[400083220,1767076240295,-454.63638182,0.00020223,4]
[400083222,1767076240305,-454.63638182,0.00020412,4]
[400083224,1767076240314,-454.4848121,0.00020601,4]
[400083226,1767076240323,-860.0,0.0002065,2]
[400083228,1767076240332,-295.77617871,0.00020666,2]
[400083230,1767076240341,-1000.0,0.00020811,2]
[400083232,1767076240351,-492.0,0.00020811,2]
[400083234,1767076240360,-39868.02025998,0.00021,2]
[400083235,1767076240369,-449.999999,0.00021,2]
[400083237,1767076240378,-48274.21960834,0.00021,2]
[400083239,1767076240387,-1262.38593694,0.00021,2]
[400083241,1767076240396,-1041.66666667,0.00021022,2]
[400083243,1767076240406,-168.4,0.00021061,2]
[400083245,1767076240416,-167.63,0.000211,2]
[400083247,1767076240425,-161.19,0.000211,2]
[400083248,1767076240434,-9961.44,0.000211,2]
[400083250,1767076240442,-960.0,0.00021198,2]
[400083252,1767076240452,-1060.0,0.00021746,2]
[400083254,1767076240462,-188.22075113,0.00021917,2]
[400083256,1767076240471,-500.08288355,0.00021917,2]
[400083257,1767076240480,-500.0,0.00021917,2]
[400083258,1767076240490,-534.62451166,0.00021917,2]
[400083259,1767076240500,-345.01026882,0.00021917,2]
[400083260,1767076240509,-288.4165173,0.00021917,2]
[400083261,1767076240519,-492.63956766,0.00021917,2]
[400083262,1767076240528,-610.85708768,0.00021917,2]
[400083263,1767076240537,-446.84088329,0.00021917,2]
[400083264,1767076240546,-500.0,0.00021917,2]
[400083265,1767076240555,-226.98660314,0.00021917,2]
[400083266,1767076240565,-500.0,0.00021917,2]
[400083267,1767076240574,-1399.86,0.00021917,2]
[400083268,1767076240583,-500.79380713,0.00021917,2]
[400083270,1767076240593,-234.9790113,0.00021917,2]
[400083271,1767076240603,-500.0,0.00021917,2]
[400083272,1767076240612,-500.0,0.00021917,2]
[400083273,1767076240621,-228.93348856,0.00021917,2]
[400083274,1767076240631,-500.06397758,0.00021917,2]
[400083275,1767076240640,-488.95703903,0.00021917,2]
[400083276,1767076240649,-500.0,0.00021917,2]
[400083277,1767076240659,-226.51399345,0.00021917,2]
[400083278,1767076240668,-373.31877062,0.00021917,2]
[400083279,1767076240676,-152.95,0.00022,2]
[400083280,1767076240685,-567.81,0.00022,7]
[400083281,1767076240694,-500.0,0.00022191,2]
[400083282,1767076240703,-498.64088611,0.00022191,2]
[400083283,1767076240713,-1399.86,0.00022191,2]
[400083284,1767076240722,-500.0,0.00022191,2]
[400083285,1767076240731,-500.50013322,0.00022191,2]
[400083286,1767076240740,-229.70253267,0.00022191,2]
[400083287,1767076240749,-1367.76,0.000222,14]
[400083288,1767076240761,-210.41432282,0.00022219,11]
[400083289,1767076240770,-1160.0,0.00022294,2]
[400083290,1767076240780,-500.0,0.00022465,2]
[400083291,1767076240789,-1399.86,0.00022465,2]
[400083292,1767076240798,-500.0,0.00022465,2]
[400083293,1767076240807,-168.4,0.00022573,2]
[400083294,1767076240816,-326.72949974,0.00022666,2]
[400083295,1767076240826,-500.0,0.00022739,2]
[400083296,1767076240835,-1399.86,0.00022739,2]
[400083297,1767076240845,-592.77633965,0.00022739,2]
[400083298,1767076240855,-1260.0,0.00022842,2]
[400083299,1767076240864,-1000.0,0.00022892,10]
[400083300,1767076240873,-791.0,0.00022892,10]
[400083301,1767076240882,-1041.66666667,0.00023,3]
[400083302,1767076240892,-1399.86,0.00023013,2]
[400083303,1767076240901,-250.64950539,0.00023212,2]
[400083304,1767076240911,-1399.86,0.00023287,2]
[400083305,1767076240920,-1360.0,0.0002339,2]
[400083306,1767076240929,-210.41432282,0.00023438,12]
[400083307,1767076240938,-500.0,0.00023545,2]
[400083308,1767076240947,-1399.86,0.00023561,2]
[400083309,1767076240956,-500.0,0.00023612,2]
[400083310,1767076240965,-281.56166012,0.00023644,10]
[400083311,1767076240974,-162.87917481,0.0002365,2]
[400083312,1767076240984,-1399.86,0.00023835,2]
[400083313,1767076240993,-1423.32077286,0.0002387,2]
[400083314,1767076241002,-160.68668951,0.00023876,2]
[400083315,1767076241012,-1460.0,0.00023938,2]
[400083316,1767076241021,-532.21782035,0.00023992,2]
[400083317,1767076241030,-222.28235322,0.00023992,2]
[400083318,1767076241040,-567.81,0.00024,7]
[400083319,1767076241049,-167.63,0.00024,7]
[400083320,1767076241058,-161.19,0.00024,7]
[400083321,1767076241068,-9961.44,0.00024,2]
[400083322,1767076241077,-168.4,0.00024085,2]
[400083323,1767076241086,-1399.86,0.00024109,2]
[400083324,1767076241095,-331596.20781339,0.00024142,2]
[400083325,1767076241104,-1399.86,0.00024383,2]
[400083326,1767076241113,-1560.0,0.00024486,2]
[400083327,1767076241122,-10907.6,0.000246,3]
[400083328,1767076241131,-24364.02650339,0.0002465,2]
[400083329,1767076241143,-210.41432282,0.00024657,14]
[400083330,1767076241152,-1399.86,0.00024657,2]
[400083331,1767076241163,-357.68282076,0.00024666,2]
[400083332,1767076241172,-3168.52426512,0.000247,2]
[400083333,1767076241183,-1367.76,0.000247,14]
[400083334,1767076241192,-160.68668951,0.00024881,56]
[400083335,1767076241201,-409673.450131,0.000249,2]
[400083336,1767076241211,-1399.86,0.00024931,2]
[400083337,1767076241221,-1018.0,0.00025,10]
[400083338,1767076241230,-10390.32906121,0.00025,2]
[400083339,1767076241239,-224922.2462527,0.00025,15]
[400083340,1767076241248,-1084.27758702,0.00025,2]
[400083341,1767076241258,-11293.20269687,0.00025,2]
[400083342,1767076241267,-2671.67802026,0.00025,2]
[400083343,1767076241276,-10364.0,0.00025,2]
[400083344,1767076241286,-500.0,0.00025,2]
[400083345,1767076241295,-1123.0,0.00025,5]
[400083346,1767076241305,-151.0,0.00025,7]
[400083347,1767076241315,-151.0,0.00025,7]
[400083348,1767076241324,-151.0,0.00025,7]
[400083349,1767076241334,-151.0,0.00025,7]
[400083350,1767076241344,-1660.0,0.00025033,2]
[400083351,1767076241353,-1000.0,0.00025181,10]
[400083352,1767076241363,-1000.0,0.00025181,10]
[400083353,1767076241372,-579.46320172,0.000252,5]
[400083354,1767076241382,-1399.86,0.00025205,2]
[400083355,1767076241391,-2000.0,0.00025461,7]
[400083356,1767076241400,-37243.040921,0.00025469,2]
[400083357,1767076241410,-900.0,0.00025469,3]
[400083358,1767076241420,-1399.86,0.00025479,2]
[400083359,1767076241429,-1000.0,0.000255,2]
[400083360,1767076241440,-1760.0,0.00025581,2]
[400083361,1767076241453,-168.4,0.00025597,2]
[400083362,1767076241462,-1399.86,0.00025753,2]
[400083363,1767076241472,-567.81,0.000258,7]
[400083364,1767076241481,-210.41432282,0.00025876,15]
[400083365,1767076241491,-160.68668951,0.00025886,110]
[400083366,1767076241501,-500.0,0.00025898,7]
[400083367,1767076241511,-500.0,0.00025986,7]
[400083368,1767076241521,-39742.13262439,0.00026,10]
[400083369,1767076241628,-529.2410511,0.00026,2]
[400083370,1767076241637,-19900.0,0.00026,2]
[400083371,1767076241647,-1041.66666667,0.00026,10]
[400083372,1767076241656,-161.0,0.00026,5]
[400083373,1767076241666,-167.63,0.00026,7]
[400083374,1767076241676,-161.19,0.00026,7]
[400083375,1767076241685,-9961.44,0.00026,2]
[400083376,1767076241695,-1399.86,0.00026027,2]
[400083377,1767076241704,-1860.0,0.00026129,2]
[400083378,1767076241713,-194.445198,0.0002616,2]
[400083379,1767076241722,-1399.86,0.00026301,2]
[400083380,1767076241731,-191.79576387,0.00026513,2]
[400083381,1767076241740,-1399.86,0.00026575,2]
[400083382,1767076241750,-37243.040921,0.00026656,2]
[400083383,1767076241759,-388.63614179,0.00026666,2]
[400083384,1767076241768,-721.386967,0.00026676,2]
[400083385,1767076241778,-1960.0,0.00026677,2]
[400083386,1767076241787,-1367.76,0.000267,14]
[400083387,1767076241796,-250.64950539,0.00026761,2]
[400083388,1767076241805,-2000.0,0.00026782,7]
[400083389,1767076241814,-1399.86,0.00026849,2]
[400083390,1767076241823,-3168.52426512,0.00027,2]
[400083391,1767076241833,-210.41432282,0.00027094,16]
[400083392,1767076241842,-168.4,0.00027109,2]
[400083393,1767076241852,-1399.86,0.00027123,2]
[400083394,1767076241861,-152.95,0.000272,2]
[400083395,1767076241871,-2060.0,0.00027225,2]
[400083396,1767076241880,-151.0,0.000273,15]
[400083397,1767076241890,-567.81,0.000273,7]
[400083398,1767076241900,-12672.28880148,0.0002739,2]
[400083399,1767076241910,-568.73029361,0.0002739,7]
[400083400,1767076241919,-1399.86,0.00027397,2]
[400083401,1767076241929,-300.0,0.00027397,2]
[400083402,1767076241939,-300.0,0.00027397,2]
[400083403,1767076241948,-300.0,0.00027397,2]
[400083404,1767076241957,-300.0,0.00027397,2]
[400083405,1767076241967,-300.0,0.00027397,2]
[400083406,1767076241976,-300.0,0.00027397,2]
[400083407,1767076241986,-300.0,0.00027397,2]
[400083408,1767076241995,-300.0,0.00027397,2]
[400083409,1767076242005,-300.0,0.00027397,2]
[400083410,1767076242015,-300.0,0.00027397,2]
[400083411,1767076242024,-300.0,0.00027397,2]
[400083412,1767076242034,-300.0,0.00027397,2]
[400083413,1767076242044,-300.0,0.00027397,2]
[400083414,1767076242053,-300.0,0.00027397,2]
[400083415,1767076242063,-300.0,0.00027397,2]
[400083416,1767076242073,-300.0,0.00027397,2]
[400083417,1767076242083,-300.0,0.00027397,2]
[400083418,1767076242093,-300.0,0.00027397,2]
[400083419,1767076242103,-300.0,0.00027397,2]
[400083420,1767076242112,-300.0,0.00027397,2]
[400083421,1767076242122,-300.0,0.00027397,2]
[400083422,1767076242132,-300.0,0.00027397,2]
[400083423,1767076242143,-300.0,0.00027397,2]
[400083424,1767076242153,-300.0,0.00027397,2]
[400083425,1767076242163,-300.0,0.00027397,2]
[400083426,1767076242173,-300.0,0.00027397,2]
[400083427,1767076242183,-300.0,0.00027397,2]
[400083428,1767076242193,-300.0,0.00027397,2]
[400083429,1767076242202,-300.0,0.00027397,2]
[400083430,1767076242212,-300.0,0.00027397,2]
[400083431,1767076242221,-300.0,0.00027397,2]
[400083432,1767076242231,-300.0,0.00027397,2]
[400083433,1767076242240,-45904.70290236,0.000275,2]
[400083434,1767076242250,-1399.86,0.00027671,2]
[400083435,1767076242260,-500.0,0.00027679,7]
[400083436,1767076242270,-1000.0,0.000277,30]
[400083437,1767076242279,-1000.0,0.000277,30]
[400083438,1767076242289,-579.0,0.000277,30]
[400083439,1767076242299,-2160.0,0.00027773,2]
[400083440,1767076242309,-1000.0,0.00027777,5]
[400083441,1767076242319,-167.63,0.000278,7]
[400083442,1767076242329,-161.19,0.000278,7]
[400083443,1767076242339,-9961.44,0.000278,2]
[400083444,1767076242349,-500.0,0.00027925,7]
[400083445,1767076242359,-1399.86,0.00027945,2]
[400083446,1767076242368,-250.0,0.00027945,5]
[400083447,1767076242378,-37243.040921,0.0002799,2]
[400083449,1767076242387,-151.0,0.0002799,7]
[400083450,1767076242398,-151.0,0.0002799,7]
[400083451,1767076242408,-1055.258506,0.0002799,7]
[400083452,1767076242418,-1055.258506,0.0002799,7]
[400083453,1767076242427,-1055.258506,0.0002799,7]
[400083454,1767076242437,-1055.258506,0.0002799,7]
[400083455,1767076242447,-15307.62179137,0.00028,2]
[400083456,1767076242456,-595.83744368,0.00028,2]
[400083457,1767076242466,-519.64420806,0.00028,2]
[400083458,1767076242475,-1041.66666667,0.00028,7]
[400083459,1767076242485,-177.0,0.00028027,27]
[400083460,1767076242494,-2000.0,0.00028104,7]
[400083461,1767076242503,-1399.94796343,0.00028219,2]
[400083462,1767076242513,-210.41432282,0.00028313,18]
[400083463,1767076242523,-2260.0,0.00028321,2]
[400083464,1767076242533,-350.0,0.00028493,5]
[400083465,1767076242542,-229718.30083605,0.000285,7]
[400083466,1767076242553,-151.0,0.000285,7]
[400083467,1767076242563,-212.855881,0.000285,7]
[400083468,1767076242573,-151.0,0.000285,7]
[400083469,1767076242582,-500.0,0.00028583,2]
[400083470,1767076242593,-496.47127164,0.00028583,2]
[400083471,1767076242602,-500.0,0.00028583,2]
[400083472,1767076242612,-260.43714474,0.00028583,2]
[400083473,1767076242622,-500.0,0.00028583,2]
[400083474,1767076242632,-500.0,0.00028583,2]
[400083475,1767076242641,-2398.4119403,0.00028583,2]
[400083476,1767076242651,-183.51906813,0.00028583,2]
[400083477,1767076242660,-500.0,0.00028583,2]
[400083478,1767076242670,-500.0,0.00028583,2]
[400083479,1767076242679,-500.0,0.00028583,2]
[400083480,1767076242689,-500.0,0.00028583,2]
[400083481,1767076242698,-152.94870132,0.00028583,2]
[400083482,1767076242707,-500.0,0.00028583,2]
[400083483,1767076242717,-250.0,0.00028583,2]
[400083484,1767076242726,-500.0,0.00028583,2]
[400083485,1767076242736,-264.27926234,0.00028583,2]
[400083486,1767076242745,-500.0,0.00028583,2]
[400083487,1767076242754,-500.0,0.00028583,2]
[400083488,1767076242763,-500.0,0.00028583,2]
[400083489,1767076242772,-500.0,0.00028583,2]
[400083490,1767076242782,-500.0,0.00028583,2]
[400083491,1767076242791,-500.0,0.00028583,2]
[400083492,1767076242801,-500.0,0.00028583,2]
[400083493,1767076242810,-151.0,0.00028583,2]
[400083494,1767076242819,-530.52894229,0.00028583,2]
[400083495,1767076242828,-151.0,0.00028583,2]
[400083496,1767076242838,-151.0,0.00028583,2]
[400083497,1767076242847,-151.0,0.00028583,2]
[400083498,1767076242857,-151.0,0.00028583,2]
[400083499,1767076242867,-151.0,0.00028583,2]
[400083500,1767076242876,-151.0,0.00028583,2]
[400083501,1767076242886,-151.0,0.00028583,2]
[400083502,1767076242895,-151.0,0.00028583,2]
[400083503,1767076242904,-151.0,0.00028583,2]
[400083504,1767076242914,-151.0,0.00028583,2]
[400083505,1767076242923,-151.0,0.00028583,2]
[400083506,1767076242932,-151.0,0.00028583,2]
[400083507,1767076242942,-151.0,0.00028583,2]
[400083508,1767076242951,-151.0,0.00028583,2]
[400083509,1767076242961,-168.4,0.00028621,3]
[400083510,1767076242971,-419.58946282,0.00028666,2]
[400083511,1767076242980,-10907.6,0.000287,3]
[400083512,1767076242990,-532.21782035,0.00028706,2]
[400083513,1767076243000,-235.22030917,0.00028712,7]
[400083514,1767076243009,-3256.62662481,0.0002876,2]
[400083515,1767076243019,-19127.78853029,0.0002876,2]
[400083516,1767076243028,-172.33062748,0.000288,7]
[400083517,1767076243038,-154.71,0.000288,2]
[400083518,1767076243047,-1082.0,0.00028832,2]
[400083519,1767076243057,-2360.0,0.00028869,2]
[400083520,1767076243067,-1367.76,0.000289,14]
[400083521,1767076243076,-154.71,0.000289,2]
[400083522,1767076243085,-2225.14761447,0.0002896,120]
[400083523,1767076243095,-1356.0,0.00029,120]
[400083524,1767076243104,-889.49824385,0.00029,2]
[400083525,1767076243114,-28341.24003385,0.00029,20]
[400083526,1767076243124,-2406.38515982,0.00029,10]
[400083527,1767076243134,-567.81,0.00029,7]
[400083528,1767076243148,-206.01879,0.00029,120]
[400083529,1767076243158,-1041.66666667,0.00029,10]
[400083530,1767076243167,-1041.66666667,0.00029,7]
[400083531,1767076243176,-154.71,0.00029,2]
[400083532,1767076243187,-450.0,0.00029041,5]
[400083533,1767076243196,-1082.0,0.00029059,2]
[400083534,1767076243205,-154.71,0.000291,2]
[400083535,1767076243215,-514.84070869,0.00029131,2]
[400083536,1767076243225,-2487.15318209,0.00029131,2]
[400083537,1767076243236,-154.71,0.000292,2]
[400083538,1767076243245,-3168.52426512,0.000293,2]
[400083539,1767076243255,-154.71,0.000293,2]
[400083540,1767076243265,-1082.0,0.00029367,2]
[400083541,1767076243274,-167.63,0.000294,7]
[400083542,1767076243283,-161.19,0.000294,7]
[400083543,1767076243293,-9961.44,0.000294,2]
[400083544,1767076243302,-487.66443132,0.00029417,2]
[400083545,1767076243312,-2000.0,0.00029426,7]
[400083546,1767076243321,-500.0,0.00029443,7]
[400083547,1767076243330,-500.0,0.0002945,7]
[400083548,1767076243340,-37243.040921,0.0002949,2]
[400083549,1767076243356,-384.21694444,0.000295,120]
[400083550,1767076243367,-154.71,0.000295,2]
[400083551,1767076243377,-1082.0,0.00029505,2]
[400083552,1767076243386,-210.41432282,0.00029532,19]
[400083553,1767076243395,-550.0,0.00029589,5]
[400083554,1767076243405,-166.35,0.000296,7]
[400083555,1767076243415,-154.71,0.000296,2]
[400083556,1767076243424,-1082.0,0.00029614,2]
[400083558,1767076243434,-533.88981491,0.00029679,2]
[400083560,1767076243444,-2579.17784983,0.00029679,2]
[400083561,1767076243454,-154.71,0.000297,2]
[400083562,1767076243465,-154.71,0.000298,2]
[400083563,1767076243474,-1041.66666667,0.000299,7]
[400083564,1767076243484,-154.71,0.000299,2]
[400083565,1767076243494,-412.34289824,0.0003,10]
[400083566,1767076243504,-263.0797124,0.0003,2]
[400083567,1767076243515,-47474.13072234,0.0003,2]
[400083568,1767076243525,-428.14042977,0.0003,120]
[400083569,1767076243535,-843.31673468,0.0003,30]
[400083570,1767076243545,-385.78785205,0.0003,120]
[400083571,1767076243555,-1500.0,0.0003,45]
[400083572,1767076243565,-509.61616711,0.0003,30]
[400083573,1767076243575,-265.86918879,0.0003,120]
[400083574,1767076243584,-13109.52834209,0.0003,120]
[400083575,1767076243593,-706.67383558,0.0003,120]
[400083576,1767076243602,-154.71,0.0003,2]
[400083577,1767076243611,-500.0,0.00030025,7]
[400083578,1767076243621,-1082.0,0.00030093,2]
[400083579,1767076243632,-284.92902915,0.000301,120]
[400083580,1767076243642,-1002.0,0.000301,30]
[400083581,1767076243651,-168.4,0.00030132,4]
[400083582,1767076243660,-650.0,0.00030137,5]
[400083583,1767076243669,-1082.0,0.00030185,2]
[400083584,1767076243679,-567.81,0.000302,7]
[400083585,1767076243689,-553.64373807,0.00030227,2]
[400083586,1767076243698,-2674.60743027,0.00030227,2]
[400083587,1767076243707,-500.0,0.0003029,7]
[400083588,1767076243717,-250.64950539,0.0003031,2]
[400083589,1767076243726,-152.95,0.000304,2]
[400083590,1767076243735,-1367.76,0.000304,14]
[400083591,1767076243744,-1082.0,0.00030465,2]
[400083592,1767076243754,-1000.0,0.0003047,30]
[400083593,1767076243763,-1000.0,0.0003047,30]
[400083594,1767076243773,-1000.0,0.0003047,30]
[400083595,1767076243782,-450.54278385,0.00030666,2]
[400083596,1767076243791,-750.0,0.00030685,5]
[400083597,1767076243801,-2000.0,0.00030748,7]
[400083598,1767076243810,-210.41432282,0.00030751,21]
[400083599,1767076243819,-500.0,0.00030754,7]
[400083600,1767076243829,-159.22,0.00030757,27]
[400083601,1767076243839,-183.75,0.00030757,27]
[400083602,1767076243850,-574.12855637,0.00030775,2]
[400083603,1767076243859,-9961.44,0.000308,2]
[400083604,1767076243869,-985.62,0.00030958,30]
[400083605,1767076243878,-305.77525825,0.0003099,2]
[400083606,1767076243888,-201.19436054,0.00031,120]
[400083607,1767076243897,-226.93462896,0.00031,120]
[400083608,1767076243907,-180.65011172,0.00031,120]
[400083609,1767076243916,-167.28493125,0.00031,120]
[400083610,1767076243925,-255.33915808,0.00031,120]
[400083611,1767076243934,-197.73888443,0.00031,120]
[400083612,1767076243944,-173.91029314,0.00031,120]
[400083613,1767076243953,-249.99724702,0.00031,120]
[400083614,1767076243963,-220.14203589,0.00031,120]
[400083615,1767076243973,-207.41822239,0.00031,120]
[400083616,1767076243982,-242.97501016,0.00031,120]
[400083617,1767076243992,-1388.90813834,0.00031,120]
[400083618,1767076244002,-180.34309153,0.00031,120]
[400083619,1767076244011,-234.75680663,0.00031,120]
[400083620,1767076244020,-28633.4661558,0.00031,120]
[400083621,1767076244029,-1041.66666667,0.00031,120]
[400083622,1767076244039,-2554.1920992,0.00031,5]
[400083623,1767076244048,-1041.66666667,0.00031,120]
[400083624,1767076244058,-500.0,0.00031025,7]
[400083625,1767076244067,-13931.54620908,0.0003112,2]
[400083626,1767076244077,-151.0,0.0003112,31]
[400083627,1767076244087,-151.649323,0.0003112,7]
[400083628,1767076244097,-1055.258506,0.0003112,28]
[400083629,1767076244106,-1055.258506,0.0003112,28]
[400083630,1767076244213,-1055.258506,0.0003112,28]
[400083631,1767076244223,-1055.258506,0.0003112,28]
[400083632,1767076244232,-1082.0,0.00031135,2]
[400083633,1767076244242,-160.0,0.00031156,3]
[400083634,1767076244251,-1082.0,0.00031232,2]
[400083635,1767076244261,-915.55215583,0.00031233,5]
[400083636,1767076244271,-544.88025884,0.00031323,2]
[400083637,1767076244285,-567.81,0.000314,7]
[400083638,1767076244295,-1082.0,0.00031412,2]
[400083639,1767076244304,-985.62,0.00031506,31]
[400083640,1767076244314,-205.0,0.00031507,20]
[400083641,1767076244323,-3168.52426512,0.00031599,2]
[400083642,1767076244332,-168.4,0.00031644,4]
[400083643,1767076244343,-4809.0,0.00031704,30]
[400083644,1767076244352,-256.5,0.00031704,30]
[400083645,1767076244362,-500.0,0.0003186,7]
[400083646,1767076244374,-226.93462896,0.000319,120]
[400083648,1767076244383,-180.65011172,0.000319,120]
[400083649,1767076244393,-167.28493125,0.000319,120]
[400083650,1767076244402,-255.33915808,0.000319,120]
[400083651,1767076244411,-197.73888443,0.000319,120]
[400083652,1767076244421,-249.99724702,0.000319,120]
[400083653,1767076244431,-220.14203589,0.000319,120]
[400083654,1767076244440,-207.41822239,0.000319,120]
[400083655,1767076244450,-242.97501016,0.000319,120]
[400083656,1767076244460,-1388.90813834,0.000319,120]
[400083657,1767076244469,-180.34309153,0.000319,120]
[400083658,1767076244478,-234.75680663,0.000319,120]
[400083659,1767076244488,-11247.79533795,0.000319,2]
[400083660,1767076244497,-210.41432282,0.0003197,22]
[400083661,1767076244506,-200.51904304,0.00032,2]
[400083662,1767076244516,-985.62,0.00032054,32]
[400083663,1767076244526,-2000.0,0.00032069,7]
[400083664,1767076244535,-1367.76,0.000321,14]
[400083665,1767076244544,-500.0,0.0003216,2]
[400083666,1767076244554,-500.0,0.00032272,7]
[400083667,1767076244564,-9961.44,0.000323,2]
[400083668,1767076244574,-939.94035546,0.00032357,7]
[400083669,1767076244583,-700.0,0.00032386,7]
[400083670,1767076244593,-4652.0,0.000324,120]
[400083671,1767076244602,-985.62,0.00032602,33]
[400083672,1767076244611,-481.49610487,0.00032666,2]
[400083673,1767076244622,-10907.6,0.000327,8]
[400083674,1767076244631,-641.83651579,0.00032777,2]
[400083675,1767076244640,-160.0,0.00032784,4]
[400083676,1767076244649,-333614.75325092,0.000328,7]
[400083677,1767076244659,-151.0,0.000328,31]
[400083678,1767076244667,-151.0,0.000328,31]
[400083679,1767076244676,-151.0,0.000328,31]
[400083680,1767076244686,-151.0,0.000328,31]
[400083681,1767076244695,-158.086969,0.000328,31]
[400083682,1767076244704,-151.0,0.000328,31]
[400083683,1767076244713,-151.0,0.000328,31]
[400083684,1767076244722,-153.033305,0.000328,31]
[400083685,1767076244732,-500.15351,0.000328,31]
[400083686,1767076244741,-500.15351,0.000328,31]
[400083687,1767076244749,-500.15351,0.000328,31]
[400083688,1767076244759,-500.15351,0.000328,31]
[400083689,1767076244768,-151.0,0.000328,31]
[400083690,1767076244778,-151.0,0.000328,31]
[400083691,1767076244787,-233.58774294,0.00032876,2]
[400083692,1767076244796,-200.0,0.00032877,24]
[400083693,1767076244805,-1303.9,0.00032877,10]
[400083694,1767076244815,-1086.58,0.00032877,10]
[400083695,1767076244824,-905.49,0.00032877,10]
[400083696,1767076244833,-500.0,0.00032877,5]
[400083697,1767076244843,-889.82912169,0.0003288,120]
[400083698,1767076244852,-226.93462896,0.000329,120]
[400083699,1767076244862,-255.33915808,0.000329,120]
[400083700,1767076244872,-197.73888443,0.000329,120]
[400083701,1767076244881,-249.99724702,0.000329,120]
[400083702,1767076244890,-220.14203589,0.000329,120]
[400083703,1767076244899,-207.41822239,0.000329,120]
[400083704,1767076244908,-242.97501016,0.000329,120]
[400083705,1767076244918,-1388.90813834,0.000329,120]
[400083706,1767076244927,-180.34309153,0.000329,120]
[400083707,1767076244936,-567.81,0.000329,7]
[400083708,1767076244945,-1020.0,0.00033,7]
[400083709,1767076244954,-5000.0,0.00033013,2]
[400083710,1767076244963,-985.62,0.0003315,34]
[400083711,1767076244972,-168.4,0.00033156,5]
[400083712,1767076244982,-721.386967,0.00033165,2]
[400083713,1767076244991,-210.41432282,0.00033189,23]
[400083714,1767076245000,-225.2411399,0.000332,117]
[400083715,1767076245009,-1241.1395,0.0003322,30]
[400083716,1767076245018,-641.83651575,0.00033292,2]
[400083717,1767076245028,-2000.0,0.00033391,7]
[400083718,1767076245038,-532.75003817,0.0003342,2]
[400083719,1767076245047,-222.50463557,0.0003342,2]
[400083720,1767076245056,-1000.0,0.00033425,5]